bitfinex/quotes_BTCUSD_20251015
["timestamp","ask_amount","ask_price","bid_price","bid_amount"]
[1760570497810,0.56650542,110990.0,110970.0,0.5665379]
[1760570497971,0.56650542,110990.0,110980.0,0.29341265]
[1760570498415,0.56650542,110990.0,110980.0,0.18021265]
[1760570498752,0.56650542,110990.0,110980.0,0.29341265]
[1760570499081,0.56650542,110990.0,110980.0,0.1132]
[1760570499280,0.56650542,110990.0,110970.0,0.65622802]
[1760570499481,0.56650542,110990.0,110980.0,0.1132]
[1760570499686,0.56650542,110990.0,110980.0,0.29341265]
[1760570501227,0.56650542,110990.0,110980.0,0.1132]
[1760570501449,0.18021265,110980.0,110970.0,0.08969012]
[1760570501651,0.56652166,110980.0,110970.0,0.20289012]
[1760570501857,0.56652166,110980.0,110970.0,0.38311901]
[1760570502951,0.18022889,110970.0,110960.0,0.63868416]
[1760570503082,0.18022889,110970.0,110960.0,0.3330675]
[1760570503734,0.56652166,110980.0,110960.0,0.4462675]
[1760570503898,0.56652166,110980.0,110970.0,0.18022889]
[1760570504100,0.56652166,110980.0,110970.0,0.29342889]
[1760570504301,0.18021265,110980.0,110970.0,0.18022889]
[1760570504705,0.18021265,110980.0,110970.0,0.29342889]
[1760570504974,0.60259878,110990.0,110970.0,0.6797379]
[1760570505153,0.18021265,110980.0,110970.0,0.5665379]
[1760570505369,0.60259878,110990.0,110970.0,0.6797379]
[1760570505774,0.94259878,110990.0,110980.0,0.1132]
[1760570506120,0.94259878,110990.0,110980.0,0.29341265]
[1760570506487,0.94259878,110990.0,110980.0,0.18021265]
[1760570506652,0.34,110990.0,110980.0,0.67972166]
[1760570506821,0.52033048,111000.0,110980.0,0.67972166]
[1760570507020,0.18019641,110990.0,110980.0,0.67972166]
[1760570507234,0.54741192,111000.0,110980.0,0.67972166]
[1760570508003,0.54741192,111000.0,110990.0,0.1132]
[1760570508209,0.34560479,111000.0,110990.0,0.1132]
[1760570508404,0.91209398,111000.0,110990.0,0.1132]
[1760570509103,0.91209398,111000.0,110980.0,0.18021265]
[1760570509104,0.18019641,110990.0,110980.0,0.18021265]
[1760570509316,0.18019641,110990.0,110980.0,0.29337265]
[1760570509963,0.92149482,111000.0,110980.0,0.29337265]
[1760570510592,0.92149482,111000.0,110990.0,0.11316]
[1760570511449,0.53518581,111000.0,110990.0,0.11316]
[1760570511650,0.92149482,111000.0,110990.0,0.29335641]
[1760570511987,0.53518581,111000.0,110990.0,0.11316]
[1760570512193,0.92149482,111000.0,110990.0,0.11316]
[1760570512399,0.92149482,111000.0,110990.0,0.29335641]
[1760570512804,0.92149482,111000.0,110990.0,0.18019641]
[1760570513017,0.92149482,111000.0,110990.0,0.29335641]
[1760570513189,0.53518581,111000.0,110990.0,0.29335641]
[1760570513396,0.92149482,111000.0,110990.0,0.29335641]
[1760570513592,0.92149482,111000.0,110990.0,0.11316]
[1760570514796,0.92149482,111000.0,110990.0,0.29335641]
[1760570515850,0.34560479,111000.0,110990.0,0.67966542]
[1760570516045,0.31852335,111000.0,110990.0,0.67966542]
[1760570517022,0.20724727,111010.0,111000.0,0.18018018]
[1760570517247,0.55680452,111010.0,111000.0,0.18018018]
[1760570517481,0.54724465,111010.0,111000.0,0.18018018]
[1760570517698,0.58042219,111020.0,111000.0,0.56648919]
[1760570517916,0.94749989,111020.0,111010.0,0.11316]
[1760570518149,0.60749989,111020.0,111010.0,0.11316]
[1760570518685,0.94749989,111020.0,111010.0,0.11316]
[1760570519093,0.94849989,111020.0,111010.0,0.11316]
[1760570521299,0.94849989,111020.0,111010.0,0.29332394]
[1760570521507,0.37257835,111020.0,111010.0,0.67963295]
[1760570521721,0.00550065,111020.0,111010.0,0.67963295]
[1760570521923,0.00550065,111020.0,111010.0,0.76932307]
[1760570522155,0.00550065,111020.0,111010.0,1.15563208]
[1760570522390,0.00450065,111020.0,111010.0,1.15563208]
[1760570522636,0.00450065,111020.0,111010.0,1.20971208]
[1760570522843,0.00450065,111020.0,111010.0,0.82340307]
[1760570523188,0.00450065,111020.0,111010.0,1.24589436]
[1760570523798,0.00450065,111020.0,111010.0,1.24689436]
[1760570524609,0.00450065,111020.0,111010.0,1.24789436]
[1760570527218,0.00450065,111020.0,111010.0,0.86158535]
[1760570527487,0.04568028,111040.0,111020.0,0.18013828]
[1760570527711,0.22596019,111040.0,111030.0,0.20285012]
[1760570527941,0.25302934,111040.0,111030.0,0.08969012]
[1760570528112,0.02581362,111040.0,111030.0,0.20285012]
[1760570528331,0.20594328,111040.0,111030.0,0.08969012]
[1760570528538,0.52014772,111020.0,111010.0,0.001]
[1760570528746,1.30945116,111020.0,111010.0,0.001]
[1760570528955,1.41705777,111020.0,111010.0,0.001]
[1760570529277,1.41705777,111020.0,110980.0,0.18922326]
[1760570529278,0.00900819,111010.0,110980.0,0.18922326]
[1760570529462,0.00900819,111010.0,110960.0,0.31499602]
[1760570529463,0.61907646,110990.0,110960.0,0.31499602]
[1760570529658,0.18021265,110980.0,110970.0,0.26991901]
[1760570529975,0.18019641,110990.0,110970.0,0.26991901]
[1760570530273,0.20727829,110990.0,110970.0,0.26991901]
[1760570530487,0.20727829,110990.0,110980.0,0.11328]
[1760570530674,0.20727829,110990.0,110980.0,0.29349265]
[1760570531433,0.20727829,110990.0,110980.0,0.18021265]
[1760570531636,0.20727829,110990.0,110980.0,0.29349265]
[1760570532933,0.20727829,110990.0,110980.0,0.11328]
[1760570533286,0.20727829,110990.0,110980.0,0.29349265]
[1760570534617,0.20727829,110990.0,110980.0,0.29345265]
[1760570535089,0.02708188,110990.0,110980.0,0.29345265]
[1760570535316,0.02708188,110990.0,110980.0,0.38314277]
[1760570538578,0.18018225,111000.0,110980.0,0.38314277]
[1760570538780,0.20726325,111000.0,110980.0,0.38314277]
[1760570540162,0.18019641,110990.0,110980.0,0.38314277]
[1760570543279,0.20726325,111000.0,110980.0,0.38314277]
[1760570543475,0.20726325,111000.0,110980.0,0.26990277]
[1760570543616,0.20726325,111000.0,110990.0,0.11324]
[1760570544004,0.20726325,111000.0,110980.0,0.26990277]
[1760570544275,0.027081,111000.0,110990.0,0.29343641]
[1760570544517,0.18919956,111010.0,111000.0,0.18018018]
[1760570544718,0.21627927,111010.0,111000.0,0.18018018]
[1760570545129,0.18019641,110990.0,110980.0,0.2789134]
[1760570545341,0.18018018,111000.0,110980.0,0.3921134]
[1760570546748,0.18018018,111000.0,110980.0,0.2789134]
[1760570546950,0.18018018,111000.0,110990.0,0.1132]
[1760570547366,0.89049774,111010.0,111000.0,0.18018018]
[1760570547367,0.02707971,111010.0,111000.0,0.18018018]
[1760570547594,0.18015209,111020.0,111010.0,0.18016312]
[1760570547732,0.2795493,111030.0,111010.0,0.29336312]
[1760570547923,0.27954944,111030.0,111010.0,0.29336312]
[1760570548272,0.18014772,111020.0,111010.0,0.29336312]
[1760570548861,0.18014772,111020.0,111010.0,0.29351337]
[1760570549681,0.593783,111030.0,111010.0,0.29351337]
[1760570550308,0.593783,111030.0,111010.0,0.18031337]
[1760570550512,0.593783,111030.0,111020.0,0.1132]
[1760570550693,0.02766508,111030.0,111020.0,0.40105261]
[1760570550858,0.00058858,111030.0,111020.0,0.7690235]
[1760570551931,0.00058858,111030.0,111020.0,0.38303784]
[1760570552161,0.00058858,111030.0,111020.0,0.38403784]
[1760570552525,0.00058858,111030.0,111020.0,0.38411784]
[1760570553375,0.00058858,111030.0,111020.0,0.32491784]
[1760570553578,0.00058858,111030.0,111020.0,0.43819784]
[1760570554806,0.00058858,111030.0,111020.0,0.32491784]
[1760570555123,0.00058858,111030.0,111020.0,0.43819784]
[1760570555735,0.00058858,111030.0,111020.0,0.32491784]
[1760570555875,0.00058858,111030.0,111020.0,0.43815784]
[1760570556286,0.00058858,111030.0,111020.0,0.32491784]
[1760570556531,0.00058858,111030.0,111020.0,0.43815784]
[1760570556758,0.18072007,111030.0,111020.0,0.43815784]
[1760570556950,0.00058858,111030.0,111020.0,0.32491784]
[1760570557146,0.18072007,111030.0,111020.0,0.43815784]
[1760570557561,0.18072007,111030.0,111020.0,0.32491784]
[1760570557894,0.00058858,111030.0,111020.0,0.43815784]
[1760570558165,0.18072007,111030.0,111020.0,0.14477012]
[1760570558420,0.18072007,111030.0,111020.0,0.001]
[1760570558634,0.18072007,111030.0,111020.0,0.11424]
[1760570558834,0.18072007,111030.0,111020.0,0.001]
[1760570559035,0.18072007,111030.0,111020.0,0.29438772]
[1760570559269,0.18072007,111030.0,111020.0,0.29338772]
[1760570560613,0.18072007,111030.0,111020.0,0.11324]
[1760570561364,0.18072007,111030.0,111020.0,0.29338772]
[1760570561990,0.18072007,111030.0,111010.0,0.18031389]
[1760570562193,0.18072007,111030.0,111020.0,0.11324]
[1760570562348,0.20779452,111030.0,111010.0,0.18031208]
[1760570562554,0.20779452,111030.0,111020.0,0.11324]
[1760570563504,0.20779452,111030.0,111010.0,0.18031208]
[1760570563710,0.20779452,111030.0,111020.0,0.11324]
[1760570564342,0.20779452,111030.0,111010.0,0.18031208]
[1760570564568,0.18014772,111020.0,111010.0,0.18031208]
[1760570564900,0.18014772,111020.0,111010.0,0.29355208]
[1760570565308,0.20779452,111030.0,111010.0,0.29355208]
[1760570565634,0.83356594,111040.0,111010.0,0.29355208]
[1760570565871,0.18013149,111030.0,111010.0,0.29355208]
[1760570566826,0.18014772,111020.0,111010.0,0.18031208]
[1760570567355,0.18014772,111020.0,111010.0,0.29355208]
[1760570567895,0.18014772,111020.0,111010.0,0.11339025]
[1760570568194,0.18014772,111020.0,111010.0,0.00015025]
[1760570568614,0.18014772,111020.0,111010.0,0.11339025]
[1760570569269,0.18014772,111020.0,111010.0,0.29355419]
[1760570570155,0.18014772,111020.0,111010.0,0.18031419]
[1760570570384,0.12579169,111030.0,111010.0,0.29351419]
[1760570570608,0.13414779,111030.0,111020.0,0.1132]
[1760570571074,0.13414779,111030.0,111010.0,0.18031419]
[1760570571291,0.13414779,111030.0,111020.0,0.29334772]
[1760570571737,0.13414779,111030.0,111020.0,0.1132]
[1760570571960,0.20719415,111040.0,111030.0,0.18013149]
[1760570572236,0.18013149,111030.0,111020.0,0.29334772]
[1760570572659,0.18113149,111030.0,111020.0,0.29334772]
[1760570573093,0.001,111030.0,111020.0,0.29334772]
[1760570573308,0.20520253,111040.0,111020.0,0.29334772]
[1760570573552,0.18013149,111030.0,111020.0,0.29334772]
[1760570574659,0.18013149,111030.0,111020.0,0.1132]
[1760570576289,0.18850317,111030.0,111020.0,0.29334772]
[1760570577743,0.00837168,111030.0,111020.0,0.29334772]
[1760570577942,0.00837168,111030.0,111020.0,0.18014772]
[1760570578155,0.180718,111040.0,111020.0,0.29334772]
[1760570578368,0.20584867,111040.0,111020.0,0.29334772]
[1760570578577,0.18909489,111040.0,111020.0,0.29334772]
[1760570580571,0.18909489,111040.0,111020.0,0.18014772]
[1760570580791,0.18909489,111040.0,111030.0,0.1132]
[1760570581012,0.18012948,111040.0,111030.0,0.1132]
[1760570581626,0.17090424,111050.0,111030.0,0.31134463]
[1760570581828,0.18011527,111040.0,111030.0,0.18013149]
[1760570582038,0.17090424,111050.0,111030.0,0.31134463]
[1760570582239,0.187662,111050.0,111030.0,0.29333149]
[1760570582444,0.18766211,111050.0,111030.0,0.29333149]
[1760570582855,0.18766211,111050.0,111040.0,0.1132]
[1760570583279,0.18766211,111050.0,111030.0,0.18013149]
[1760570583648,0.18825054,111050.0,111030.0,0.18013149]
[1760570583860,0.0173463,111050.0,111040.0,0.29331527]
[1760570584072,0.18068748,111050.0,111040.0,0.29331527]
[1760570584299,0.19744535,111050.0,111040.0,0.18011527]
[1760570584512,0.00058843,111050.0,111040.0,0.29331527]
[1760570584727,0.18068748,111050.0,111040.0,0.29327527]
[1760570584952,0.19744501,111050.0,111040.0,0.18011527]
[1760570585489,0.19744501,111050.0,111040.0,0.29327527]
[1760570586066,0.18068748,111050.0,111040.0,0.29327527]
[1760570586686,0.00058843,111050.0,111040.0,0.29327527]
[1760570587096,0.18068748,111050.0,111040.0,0.29327527]
[1760570588550,0.00058843,111050.0,111040.0,0.29327527]
[1760570589302,0.18068748,111050.0,111040.0,0.29327527]
[1760570589604,0.18068748,111050.0,111040.0,0.18011527]
[1760570589810,0.18068748,111050.0,111040.0,0.29327527]
[1760570590178,0.56663531,111050.0,111040.0,0.11316]
[1760570590963,0.56663531,111050.0,111040.0,0.29327527]
[1760570591452,0.56663531,111050.0,111040.0,0.18011527]
[1760570591653,0.56663531,111050.0,111040.0,0.29327527]
[1760570591980,0.56663531,111050.0,111040.0,0.18011527]
[1760570591981,0.18068748,111050.0,111040.0,0.18011527]
[1760570592321,0.56663531,111050.0,111040.0,0.18011527]
[1760570592531,0.56663531,111050.0,111040.0,0.11316]
[1760570592760,0.56663531,111050.0,111040.0,0.29323527]
[1760570592934,0.5750101,111050.0,111040.0,0.29323527]
[1760570593733,0.5750101,111050.0,111040.0,0.11312]
[1760570593923,0.5750101,111050.0,111040.0,0.29323527]
[1760570594570,0.5750101,111050.0,111040.0,0.18011527]
[1760570594863,0.5750101,111050.0,111040.0,0.29323527]
[1760570595274,0.18906227,111050.0,111040.0,0.29323527]
[1760570596408,0.5750101,111050.0,111040.0,0.29323527]
[1760570597531,0.18906227,111050.0,111040.0,0.29323527]
[1760570598419,0.18068748,111050.0,111040.0,0.18011527]
[1760570598647,0.18068748,111050.0,111040.0,0.29323527]
[1760570598933,0.18068748,111050.0,111040.0,0.18011527]
[1760570599130,0.18011527,111040.0,111030.0,0.26982161]
[1760570599284,0.56663531,111050.0,111030.0,0.38294161]
[1760570599486,0.57492165,111050.0,111030.0,0.38294161]
[1760570600268,0.57492165,111050.0,111030.0,0.26982161]
[1760570600473,0.56654718,111050.0,111040.0,0.11312]
[1760570600674,0.56654718,111050.0,111030.0,0.26982161]
[1760570600675,0.18011527,111040.0,111030.0,0.26982161]
[1760570600881,0.56654718,111050.0,111030.0,0.38294161]
[1760570601088,0.56654718,111050.0,111030.0,0.26982161]
[1760570601290,0.56654718,111050.0,111040.0,0.11312]
[1760570601637,0.56654718,111050.0,111030.0,0.26982161]
[1760570601836,0.56654718,111050.0,111040.0,0.11312]
[1760570602633,0.18011527,111040.0,111030.0,0.26982161]
[1760570602889,0.18011527,111040.0,111030.0,0.38294161]
[1760570603549,0.56654718,111050.0,111030.0,0.38294161]
[1760570603703,0.56654718,111050.0,111030.0,0.26982161]
[1760570603917,0.56654718,111050.0,111040.0,0.11312]
[1760570605125,0.56654718,111050.0,111040.0,0.29323527]
[1760570605521,0.56654718,111050.0,111040.0,0.18011527]
[1760570605728,0.56654718,111050.0,111040.0,0.29323527]
[1760570606550,0.00058843,111050.0,111040.0,0.29323527]
[1760570606755,0.56654718,111050.0,111040.0,0.18011527]
[1760570607024,0.00058843,111050.0,111040.0,0.18011527]
[1760570607230,0.00058843,111050.0,111040.0,0.76878509]
[1760570607584,0.00058843,111050.0,111040.0,1.15464479]
[1760570607992,0.00058843,111050.0,111040.0,1.16364256]
[1760570608194,0.00058843,111050.0,111040.0,1.05052256]
[1760570608383,0.00058843,111050.0,111040.0,0.39192316]
[1760570608583,0.00058843,111050.0,111040.0,1.16364256]
[1760570608783,0.00058843,111050.0,111040.0,0.66466286]
[1760570609382,0.18068748,111050.0,111040.0,0.09968789]
[1760570609588,0.18068748,111050.0,111040.0,0.09069012]
[1760570609589,0.56654718,111050.0,111040.0,0.09069012]
[1760570609785,0.56654718,111050.0,111040.0,0.11412]
[1760570609984,0.56654718,111050.0,111040.0,0.001]
[1760570610750,0.57493325,111050.0,111040.0,0.001]
[1760570611118,0.57493325,111050.0,111040.0,0.11412]
[1760570611506,0.18013149,111030.0,111020.0,0.25223254]
[1760570611723,0.56599119,111030.0,111020.0,0.44603561]
[1760570612134,0.18013149,111030.0,111020.0,0.44603561]
[1760570612951,0.18013149,111030.0,111020.0,0.33391561]
[1760570613146,0.18013149,111030.0,111020.0,0.44703561]
[1760570614242,0.5659895,111040.0,111020.0,0.33391561]
[1760570614397,0.5659895,111040.0,111020.0,0.44703561]
[1760570614600,0.18013149,111030.0,111020.0,0.44703561]
[1760570615085,0.18013149,111030.0,111020.0,0.43803784]
[1760570615291,0.18013149,111030.0,111020.0,0.43703784]
[1760570615528,0.1801298,111040.0,111020.0,0.43703784]
[1760570615730,0.5659895,111040.0,111020.0,0.26983784]
[1760570615934,0.5659895,111040.0,111030.0,0.11312]
[1760570616392,0.5659895,111040.0,111020.0,0.26983784]
[1760570616613,0.5659895,111040.0,111030.0,0.11312]
[1760570618432,0.5659895,111040.0,111020.0,0.26983784]
[1760570618778,0.1801298,111040.0,111030.0,0.18013149]
[1760570618894,0.5659895,111040.0,111030.0,0.29325149]
[1760570619303,0.5659895,111040.0,111030.0,0.18013149]
[1760570619502,0.5659895,111040.0,111030.0,0.29325149]
[1760570619958,0.5659895,111040.0,111030.0,0.18013149]
[1760570620293,0.56597497,111040.0,111030.0,0.29325149]
[1760570620824,0.56597497,111040.0,111030.0,0.18013149]
[1760570621069,0.18011527,111040.0,111030.0,0.29325149]
[1760570621946,0.57555213,111050.0,111040.0,0.18011527]
[1760570622158,0.00058843,111050.0,111040.0,0.29323527]
[1760570622362,0.00058843,111050.0,111040.0,0.56597497]
[1760570622497,0.00058843,111050.0,111040.0,0.67909497]
[1760570622709,0.00058843,111050.0,111040.0,0.29323527]
[1760570623336,0.00058843,111050.0,111040.0,0.67909497]
[1760570623867,0.00058843,111050.0,111040.0,0.56597497]
[1760570624037,0.00058843,111050.0,111040.0,0.76878509]
[1760570624447,0.00058843,111050.0,111040.0,0.65566509]
[1760570624650,0.00058843,111050.0,111040.0,0.76878509]
[1760570625357,0.00058843,111050.0,111040.0,0.65566509]
[1760570625529,0.00058843,111050.0,111040.0,0.76878509]
[1760570625953,0.00058843,111050.0,111040.0,0.65566509]
[1760570626155,0.00058843,111050.0,111040.0,0.76878509]
[1760570628723,0.00058843,111050.0,111040.0,0.38292539]
[1760570628870,0.00058843,111050.0,111040.0,0.26980539]
[1760570629056,0.00058843,111050.0,111040.0,0.76878509]
[1760570630151,0.00058843,111050.0,111040.0,0.65566509]
[1760570630334,0.00058843,111050.0,111040.0,0.76878509]
[1760570632004,0.00058843,111050.0,111040.0,0.65566509]
[1760570632149,0.00058843,111050.0,111040.0,0.76878509]
[1760570633143,0.00058843,111050.0,111040.0,0.65566509]
[1760570633338,0.00058843,111050.0,111040.0,0.76878509]
[1760570633766,0.00058843,111050.0,111040.0,0.65566509]
[1760570634477,0.00058843,111050.0,111040.0,0.76878509]
[1760570635776,0.00058843,111050.0,111040.0,0.65566509]
[1760570636154,0.00058843,111050.0,111040.0,0.76878509]
[1760570636354,0.00058843,111050.0,111040.0,0.65566509]
[1760570636581,0.00058843,111050.0,111040.0,0.38292539]
[1760570636782,0.00058843,111050.0,111040.0,0.76878509]
[1760570637000,0.00058843,111050.0,111040.0,0.65566509]
[1760570637405,0.00058843,111050.0,111040.0,0.38292539]
[1760570639282,0.00058843,111050.0,111040.0,0.76878509]
[1760570639489,0.00058843,111050.0,111040.0,0.65566509]
[1760570639918,0.00058843,111050.0,111040.0,0.76878509]
[1760570640347,0.00058843,111050.0,111040.0,0.65566509]
[1760570640561,0.00058843,111050.0,111040.0,1.05052256]
[1760570640978,0.00058843,111050.0,111040.0,1.16364256]
[1760570641189,0.00058843,111050.0,111040.0,1.05052256]
[1760570641397,0.00058843,111050.0,111040.0,1.16364256]
[1760570641605,0.00058843,111050.0,111040.0,1.05052256]
[1760570641811,0.00058843,111050.0,111040.0,1.16364256]
[1760570642044,0.00058843,111050.0,111040.0,1.05152256]
[1760570642268,0.00058843,111050.0,111040.0,1.16464256]
[1760570642505,0.00058843,111050.0,111040.0,0.77878286]
[1760570642718,0.00058843,111050.0,111040.0,0.66566286]
[1760570642930,0.00058843,111050.0,111040.0,0.77878286]
[1760570643361,0.00058843,111050.0,111040.0,0.66566286]
[1760570643530,0.00058843,111050.0,111040.0,0.77878286]
[1760570643946,0.00058843,111050.0,111040.0,0.66566286]
[1760570644144,0.00058843,111050.0,111040.0,0.77878286]
[1760570644402,0.00058843,111050.0,111040.0,0.39292316]
[1760570644605,0.00058843,111050.0,111040.0,0.77878286]
[1760570645146,0.00058843,111050.0,111040.0,0.66566286]
[1760570645352,0.00058843,111050.0,111040.0,0.77878286]
[1760570645751,0.00058843,111050.0,111040.0,0.66566286]
[1760570646176,0.00058843,111050.0,111040.0,0.77878286]
[1760570646375,0.18068748,111050.0,111040.0,0.001]
[1760570646609,0.56654718,111050.0,111040.0,0.001]
[1760570646809,0.56654718,111050.0,111040.0,0.11412]
[1760570647024,0.59361552,111050.0,111040.0,0.001]
[1760570647425,0.59361552,111050.0,111040.0,0.11412]
[1760570647825,0.59361552,111050.0,111040.0,0.001]
[1760570648072,0.59361552,111050.0,111040.0,0.11412]
[1760570648269,0.20775582,111050.0,111040.0,0.29323527]
[1760570648460,0.59361552,111050.0,111040.0,0.18011527]
[1760570648801,0.59361552,111050.0,111030.0,0.18012731]
[1760570648926,0.18011527,111040.0,111030.0,0.26981743]
[1760570649126,0.18011527,111040.0,111030.0,0.20281012]
[1760570649351,0.56597497,111040.0,111030.0,0.20281012]
[1760570649778,0.56597497,111040.0,111030.0,0.26982161]
[1760570649980,0.18013149,111030.0,111020.0,0.1891551]
[1760570650189,0.18013149,111030.0,111020.0,0.27884522]
[1760570650386,0.56599119,111030.0,111020.0,0.27884522]
[1760570650600,0.56599119,111030.0,111020.0,0.39196522]
[1760570650825,0.18014772,111020.0,111010.0,0.2343867]
[1760570651141,0.56599119,111030.0,111020.0,0.18014772]
[1760570651344,0.28851287,111050.0,111030.0,0.18013149]
[1760570651544,0.28851287,111050.0,111040.0,0.18011527]
[1760570651545,0.28788695,111050.0,111040.0,0.18011527]
[1760570651746,0.67374665,111050.0,111030.0,0.18013149]
[1760570651878,0.60199455,111050.0,111040.0,0.29323527]
[1760570652090,0.60199455,111050.0,111040.0,0.11312]
[1760570652305,0.60199455,111050.0,111040.0,0.18011527]
[1760570652511,0.60199455,111050.0,111040.0,0.29323527]
[1760570652762,0.60199455,111050.0,111040.0,0.11312]
[1760570652965,0.60199455,111050.0,111040.0,0.29323527]
[1760570653386,0.59361552,111050.0,111040.0,0.11312]
[1760570653589,0.18012757,111040.0,111020.0,0.28784299]
[1760570653744,0.56598727,111040.0,111030.0,0.29325149]
[1760570655035,0.59305769,111040.0,111030.0,0.18013149]
[1760570655234,0.59305769,111040.0,111030.0,0.29325149]
[1760570655447,0.59305769,111040.0,111030.0,0.11312]
[1760570655678,0.59305769,111040.0,111020.0,0.67370269]
[1760570655923,0.59305769,111040.0,111030.0,0.11312]
[1760570656133,0.59305769,111040.0,111030.0,0.29325149]
[1760570656579,0.59305769,111040.0,111030.0,0.18013149]
[1760570656811,0.59305769,111040.0,111030.0,0.29325149]
[1760570658131,0.59305769,111040.0,111030.0,0.18013149]
[1760570658347,0.59305769,111040.0,111030.0,0.29325149]
[1760570658999,0.59305769,111040.0,111030.0,0.18013149]
[1760570659195,0.59305769,111040.0,111030.0,0.29325149]
[1760570659437,0.20719799,111040.0,111030.0,0.29325149]
[1760570659682,0.60207661,111040.0,111010.0,0.05423025]
[1760570659945,0.60207661,111040.0,111010.0,0.32408213]
[1760570659946,0.18014772,111020.0,111010.0,0.32408213]
[1760570660171,0.18014772,111020.0,111010.0,0.43720213]
[1760570660606,0.18955636,111020.0,111010.0,0.43720213]
[1760570661059,0.20720465,111030.0,111010.0,0.32408213]
[1760570661291,0.20720465,111030.0,111010.0,0.43720213]
[1760570661488,0.20720465,111030.0,111020.0,0.11312]
[1760570661691,0.20720465,111030.0,111010.0,0.32408213]
[1760570661899,0.20720465,111030.0,111020.0,0.11312]
[1760570662113,0.18013149,111030.0,111020.0,0.11312]
[1760570662548,0.18943633,111030.0,111020.0,0.11312]
[1760570663652,0.57530919,111030.0,111020.0,0.11312]
[1760570664090,0.60238349,111030.0,111020.0,0.11312]
[1760570664549,0.18014772,111020.0,111010.0,0.23439419]
[1760570664772,0.18014772,111020.0,111010.0,0.34751419]
[1760570665451,0.56602058,111020.0,111010.0,0.05423025]
[1760570665650,0.56602058,111020.0,111010.0,0.16735025]
[1760570665848,0.18014772,111020.0,111010.0,0.23539419]
[1760570666102,0.18014772,111020.0,111010.0,0.34851419]
[1760570666772,0.18014772,111020.0,111010.0,0.23539419]
[1760570666995,0.18014772,111020.0,111010.0,0.29443419]
[1760570667494,0.18014772,111020.0,111010.0,0.29343419]
[1760570667729,0.21651063,111030.0,111010.0,0.18031419]
[1760570667983,0.60238349,111030.0,111010.0,0.29343419]
[1760570668640,0.60238349,111030.0,111010.0,0.18031419]
[1760570669035,0.60238349,111030.0,111020.0,0.11312]
[1760570669494,0.60238349,111030.0,111010.0,0.18031419]
[1760570669704,0.21651063,111030.0,111020.0,0.29326772]
[1760570669923,0.0270743,111030.0,111020.0,0.29326772]
[1760570670125,0.18011761,111040.0,111020.0,0.29326772]
[1760570670356,0.20719016,111040.0,111030.0,0.18013149]
[1760570670594,0.20719016,111040.0,111020.0,0.29326772]
[1760570670836,0.20719016,111040.0,111030.0,0.11312]
[1760570671528,0.59306302,111040.0,111030.0,0.11312]
[1760570671738,0.60229521,111040.0,111030.0,0.11312]
[1760570671951,0.18013149,111030.0,111020.0,0.18014772]
[1760570672179,0.18013149,111030.0,111020.0,0.29326772]
[1760570672679,0.56600435,111030.0,111020.0,0.11312]
[1760570672930,0.18014772,111020.0,111010.0,0.18031243]
[1760570673135,0.18014772,111020.0,111010.0,0.38312255]
[1760570673973,0.18014772,111020.0,111010.0,0.27000255]
[1760570674176,0.56600435,111030.0,111010.0,0.38312255]
[1760570674385,0.18014772,111020.0,111010.0,0.27000255]
[1760570674614,0.18014772,111020.0,111010.0,0.38312255]
[1760570674836,0.56600435,111030.0,111010.0,0.38312255]
[1760570675486,0.56600435,111030.0,111010.0,0.27000255]
[1760570675692,0.56600435,111030.0,111020.0,0.11312]
[1760570676097,0.18014772,111020.0,111010.0,0.18030539]
[1760570676303,0.18014772,111020.0,111010.0,0.29342539]
[1760570676730,0.56600435,111030.0,111020.0,0.18014772]
[1760570676932,0.18013149,111030.0,111020.0,0.18014772]
[1760570677364,0.61130263,111040.0,111020.0,0.18014772]
[1760570677564,0.18013149,111030.0,111020.0,0.18014772]
[1760570677779,0.18013149,111030.0,111020.0,0.29326772]
[1760570678113,0.18013149,111030.0,111020.0,0.18014772]
[1760570678313,0.18013149,111030.0,111020.0,0.29326772]
[1760570680535,0.18013149,111030.0,111020.0,0.18014772]
[1760570680734,0.18013149,111030.0,111020.0,0.29326772]
[1760570686673,0.22542977,111040.0,111030.0,0.18013149]
[1760570686859,0.2338173,111040.0,111030.0,0.11312]
[1760570687057,0.2338173,111040.0,111020.0,0.18014772]
[1760570687327,0.2338173,111040.0,111030.0,0.11312]
[1760570689149,0.2338173,111040.0,111030.0,0.29325149]
[1760570689561,0.0354656,111040.0,111030.0,0.18013149]
[1760570689766,0.00839139,111040.0,111030.0,0.29325149]
[1760570689983,0.18969243,111050.0,111040.0,0.18011527]
[1760570690195,0.21615029,111050.0,111040.0,0.18011527]
[1760570690369,0.22528989,111050.0,111040.0,0.11312]
[1760570691156,0.22628989,111050.0,111040.0,0.11312]
[1760570691378,0.21715029,111050.0,111040.0,0.29323527]
[1760570691566,0.21615029,111050.0,111040.0,0.29323527]
[1760570692375,0.03605124,111050.0,111040.0,0.29323527]
[1760570692589,0.18907933,111050.0,111040.0,0.29323527]
[1760570692789,0.18068748,111050.0,111040.0,0.29323527]
[1760570693755,0.18068748,111050.0,111040.0,0.18011527]
[1760570693971,0.18068748,111050.0,111040.0,0.29323527]
[1760570694382,0.18068748,111050.0,111040.0,0.11312]
[1760570695079,0.18068748,111050.0,111040.0,0.29323527]
[1760570696487,0.18068748,111050.0,111040.0,0.18011527]
[1760570696690,0.18068748,111050.0,111040.0,0.29323527]
[1760570698772,0.18068748,111050.0,111040.0,0.11312]
[1760570699179,0.18068748,111050.0,111030.0,0.18013149]
[1760570699456,0.18068748,111050.0,111040.0,0.11312]
[1760570700852,0.18068748,111050.0,111040.0,0.29323527]
[1760570701054,0.18068748,111050.0,111040.0,0.11312]
[1760570701723,0.18011527,111040.0,111030.0,0.26982161]
[1760570701924,0.18011527,111040.0,111030.0,0.38294161]
[1760570702197,0.18011527,111040.0,111030.0,0.26982161]
[1760570702410,0.18011527,111040.0,111030.0,0.38294161]
[1760570703057,0.18011527,111040.0,111030.0,0.26982161]
[1760570703262,0.56656034,111050.0,111030.0,0.38294161]
[1760570703471,0.18068748,111050.0,111040.0,0.11312]
[1760570703592,0.18068748,111050.0,111040.0,0.18011527]
[1760570703795,0.18068748,111050.0,111040.0,0.11312]
[1760570704007,0.18068748,111050.0,111040.0,0.29323527]
[1760570704203,0.18068748,111050.0,111030.0,0.26982161]
[1760570704982,0.18068748,111050.0,111040.0,0.11312]
[1760570705128,0.18068748,111050.0,111040.0,0.29323527]
[1760570706014,0.18068748,111050.0,111040.0,0.11312]
[1760570706597,0.3761287,111050.0,111040.0,0.11312]
[1760570706752,0.55624253,111050.0,111040.0,0.11312]
[1760570707153,0.55624253,111050.0,111040.0,0.29323527]
[1760570708700,0.55624253,111050.0,111040.0,0.18011527]
[1760570708915,0.18011383,111050.0,111040.0,0.18011527]
[1760570709082,0.56598669,111050.0,111040.0,0.29323527]
[1760570709299,0.56598669,111050.0,111040.0,0.18011527]
[1760570709849,0.18011383,111050.0,111040.0,0.18011527]
[1760570710041,0.18011383,111050.0,111040.0,0.29323527]
[1760570710396,0.18011383,111050.0,111040.0,0.18011527]